lending/lending_fUSD_20250303
["ID","MTS","AMOUNT","RATE_DAILY","PERIOD"]
[355207188,1741009849253,-506.35251696,0.00014879,2]
[355207189,1741009849262,-500.0,0.00014879,2]
[355207190,1741009849272,-500.0,0.00014879,2]
[355207191,1741009849282,-644.19,0.00014879,2]
[355207192,1741009849291,-500.0,0.00014879,2]
[355207193,1741009849301,-500.0,0.00014879,2]
[355207194,1741009849313,-500.0,0.00014879,2]
[355207195,1741009849322,-500.0,0.00014879,2]
[355207196,1741009849332,-500.0,0.00014879,2]
[355207197,1741009849341,-500.0,0.00014879,2]
[355207198,1741009849351,-500.0,0.00014879,2]
[355207199,1741009849361,-641.13,0.00014879,2]
[355207200,1741009849371,-500.0,0.00014879,2]
[355207201,1741009849381,-500.0,0.00014879,2]
[355207202,1741009849390,-500.0,0.00014879,2]
[355207203,1741009849400,-500.0,0.00014879,2]
[355207204,1741009849409,-500.0,0.00014879,2]
[355207205,1741009849419,-500.0,0.00014879,2]
[355207206,1741009849429,-1223.49,0.00014879,2]
[355207207,1741009849439,-500.0,0.00014879,2]
[355207208,1741009849449,-500.0,0.00014879,2]
[355207209,1741009849459,-500.0,0.00014879,2]
[355207210,1741009849468,-500.0,0.00014879,2]
[355207211,1741009849478,-500.0,0.00014879,2]
[355207212,1741009849488,-500.0,0.00014879,2]
[355207213,1741009849498,-500.0,0.00014879,2]
[355207214,1741009849508,-500.0,0.00014879,2]
[355207215,1741009849518,-500.0,0.00014879,2]
[355207216,1741009849527,-500.0,0.00014879,2]
[355207217,1741009849537,-500.0,0.00014879,2]
[355207218,1741009849547,-500.0,0.00014879,2]
[355207219,1741009849557,-500.0,0.00014879,2]
[355207220,1741009849567,-500.0,0.00014879,2]
[355207221,1741009849578,-500.0,0.00014879,2]
[355207222,1741009849588,-500.0,0.00014879,2]
[355207223,1741009849598,-500.0,0.00014879,2]
[355207224,1741009849607,-500.0,0.00014879,2]
[355207225,1741009849618,-500.0,0.00014879,2]
[355207226,1741009849628,-500.0,0.00014879,2]
[355207227,1741009849638,-540.23,0.00014879,2]
[355207228,1741009849648,-500.0,0.00014879,2]
[355207229,1741009849659,-523.80010773,0.00014879,2]
[355207230,1741009849668,-500.0,0.00014879,2]
[355207231,1741009849677,-500.0,0.00014879,2]
[355207232,1741009849687,-500.0,0.00014879,2]
[355207233,1741009849696,-500.0,0.00014879,2]
[355207234,1741009849706,-500.0,0.00014879,2]
[355207235,1741009849715,-500.0,0.00014879,2]
[355207236,1741009849724,-500.0,0.00014879,2]
[355207237,1741009849734,-500.0,0.00014879,2]
[355207238,1741009849744,-500.0,0.00014879,2]
[355207239,1741009849754,-500.0,0.00014879,2]
[355207240,1741009849763,-500.0,0.00014879,2]
[355207241,1741009849772,-500.0,0.00014879,2]
[355207242,1741009849782,-500.0,0.00014879,2]
[355207243,1741009849791,-500.0,0.00014879,2]
[355207244,1741009849800,-526.39,0.00014879,2]
[355207245,1741009849812,-706.0,0.00014879,2]
[355207246,1741009849822,-500.0,0.00014879,2]
[355207247,1741009849832,-500.0,0.00014879,2]
[355207248,1741009849841,-500.0,0.00014879,2]
[355207249,1741009849850,-500.0,0.00014879,2]
[355207250,1741009849860,-500.0,0.00014879,2]
[355207251,1741009849979,-500.0,0.00014879,2]
[355207252,1741009849989,-500.0,0.00014879,2]
[355207253,1741009849998,-500.0,0.00014879,2]
[355207254,1741009850008,-500.0,0.00014879,2]
[355207255,1741009850018,-500.0,0.00014879,2]
[355207256,1741009850028,-500.0,0.00014879,2]
[355207257,1741009850037,-500.0,0.00014879,2]
[355207258,1741009850046,-500.0,0.00014879,2]
[355207259,1741009850055,-500.0,0.00014879,2]
[355207260,1741009850066,-500.0,0.00014879,2]
[355207261,1741009850076,-500.0,0.00014879,2]
[355207262,1741009850086,-600.76,0.00014879,2]
[355207263,1741009850095,-523.3256299,0.00014879,2]
[355207264,1741009850104,-500.0,0.00014879,2]
[355207265,1741009850115,-516.68191871,0.00014879,2]
[355207266,1741009850124,-500.0,0.00014879,2]
[355207267,1741009850134,-500.0,0.00014879,2]
[355207268,1741009850143,-500.0,0.00014879,2]
[355207269,1741009850152,-500.0,0.00014879,2]
[355207270,1741009850161,-500.0,0.00014879,2]
[355207271,1741009850170,-500.0,0.00014879,2]
[355207272,1741009850180,-500.0,0.00014879,2]
[355207273,1741009850189,-522.82375892,0.00014879,2]
[355207274,1741009850198,-500.0,0.00014879,2]
[355207275,1741009850207,-736.46,0.00014879,2]
[355207276,1741009850216,-500.0,0.00014879,2]
[355207277,1741009850225,-500.0,0.00014879,2]
[355207278,1741009850234,-500.0,0.00014879,2]
[355207279,1741009850244,-500.0,0.00014879,2]
[355207280,1741009850253,-511.0476903,0.00014879,2]
[355207281,1741009850262,-500.0,0.00014879,2]
[355207282,1741009850271,-500.0,0.00014879,2]
[355207283,1741009850280,-500.0,0.00014879,2]
[355207284,1741009850289,-500.0,0.00014879,2]
[355207285,1741009850299,-733.03,0.00014879,2]
[355207286,1741009850310,-500.0,0.00014879,2]
[355207287,1741009850320,-500.0,0.00014879,2]
[355207288,1741009850330,-500.0,0.00014879,2]
[355207289,1741009850339,-574.27,0.00014879,2]
[355207290,1741009850348,-500.0,0.00014879,2]
[355207291,1741009850357,-545.52251997,0.00014879,2]
[355207292,1741009850367,-594.96,0.00014879,2]
[355207293,1741009850377,-500.0,0.00014879,2]
[355207294,1741009850386,-500.0,0.00014879,2]
[355207295,1741009850396,-500.0,0.00014879,2]
[355207296,1741009850405,-500.0,0.00014879,2]
[355207297,1741009850414,-500.0,0.00014879,2]
[355207298,1741009850423,-500.0,0.00014879,2]
[355207299,1741009850433,-531.45,0.00014879,2]
[355207300,1741009850443,-500.0,0.00014879,2]
[355207301,1741009850452,-500.0,0.00014879,2]
[355207302,1741009850463,-500.0,0.00014879,2]
[355207303,1741009850472,-500.0,0.00014879,2]
[355207304,1741009850481,-500.0,0.00014879,2]
[355207305,1741009850491,-500.0,0.00014879,2]
[355207306,1741009850499,-500.0,0.00014879,2]
[355207307,1741009850509,-500.0,0.00014879,2]
[355207308,1741009850518,-500.0,0.00014879,2]
[355207309,1741009850527,-500.0,0.00014879,2]
[355207310,1741009850537,-500.0,0.00014879,2]
[355207311,1741009850545,-500.0,0.00014879,2]
[355207312,1741009850554,-500.0,0.00014879,2]
[355207313,1741009850564,-500.0,0.00014879,2]
[355207314,1741009850577,-500.0,0.00014879,2]
[355207315,1741009850586,-500.0,0.00014879,2]
[355207316,1741009850596,-500.0,0.00014879,2]
[355207317,1741009850605,-500.0,0.00014879,2]
[355207318,1741009850615,-500.0,0.00014879,2]
[355207319,1741009850625,-500.0,0.00014879,2]
[355207320,1741009850634,-500.0,0.00014879,2]
[355207321,1741009850643,-518.72234495,0.00014879,2]
[355207322,1741009850653,-500.0,0.00014879,2]
[355207323,1741009850663,-516.75,0.00014879,2]
[355207324,1741009850672,-500.0,0.00014879,2]
[355207325,1741009850682,-500.0,0.00014879,2]
[355207326,1741009850691,-500.0,0.00014879,2]
[355207327,1741009850700,-500.0,0.00014879,2]
[355207328,1741009850709,-500.0,0.00014879,2]
[355207329,1741009850719,-518.38282078,0.00014879,2]
[355207330,1741009850728,-500.0,0.00014879,2]
[355207331,1741009850737,-500.0,0.00014879,2]
[355207332,1741009850747,-500.0,0.00014879,2]
[355207333,1741009850756,-517.09,0.00014879,2]
[355207334,1741009850765,-500.0,0.00014879,2]
[355207335,1741009850775,-500.0,0.00014879,2]
[355207336,1741009850784,-500.0,0.00014879,2]
[355207337,1741009850793,-537.76,0.00014879,2]
[355207338,1741009850803,-500.0,0.00014879,2]
[355207339,1741009850814,-500.0,0.00014879,2]
[355207340,1741009850824,-511.8604642,0.00014879,2]
[355207341,1741009850833,-500.0,0.00014879,2]
[355207342,1741009850842,-500.0,0.00014879,2]
[355207343,1741009850852,-500.0,0.00014879,2]
[355207344,1741009850861,-500.0,0.00014879,2]
[355207345,1741009850871,-500.0,0.00014879,2]
[355207346,1741009850881,-500.0,0.00014879,2]
[355207347,1741009850891,-500.0,0.00014879,2]
[355207348,1741009850901,-500.0,0.00014879,2]
[355207349,1741009850910,-500.0,0.00014879,2]
[355207350,1741009850920,-500.0,0.00014879,2]
[355207351,1741009850930,-500.0,0.00014879,2]
[355207352,1741009850939,-514.61138239,0.00014879,2]
[355207353,1741009850948,-8911.56,0.00014879,2]
[355207354,1741009850958,-500.0,0.00014879,2]
[355207355,1741009850967,-500.0,0.00014879,2]
[355207356,1741009850976,-504.56312365,0.00014879,2]
[355207357,1741009850986,-500.0,0.00014879,2]
[355207358,1741009850995,-500.0,0.00014879,2]
[355207359,1741009851004,-500.0,0.00014879,2]
[355207360,1741009851014,-500.0,0.00014879,2]
[355207361,1741009851023,-500.0,0.00014879,2]
[355207362,1741009851032,-500.0,0.00014879,2]
[355207363,1741009851042,-1314.89,0.00014879,2]
[355207364,1741009851051,-500.0,0.00014879,2]
[355207365,1741009851062,-500.0,0.00014879,2]
[355207366,1741009851071,-536.92,0.00014879,2]
[355207367,1741009851081,-514.60569131,0.00014879,2]
[355207368,1741009851090,-500.0,0.00014879,2]
[355207369,1741009851100,-737.45,0.00014879,2]
[355207370,1741009851109,-500.0,0.00014879,2]
[355207371,1741009851119,-500.0,0.00014879,2]
[355207372,1741009851128,-500.0,0.00014879,2]
[355207373,1741009851138,-500.0,0.00014879,2]
[355207374,1741009851147,-536.43989846,0.00014879,2]
[355207375,1741009851157,-500.0,0.00014879,2]
[355207376,1741009851166,-500.0,0.00014879,2]
[355207377,1741009851176,-500.0,0.00014879,2]
[355207378,1741009851185,-500.0,0.00014879,2]
[355207379,1741009851195,-500.0,0.00014879,2]
[355207380,1741009851204,-500.0,0.00014879,2]
[355207381,1741009851213,-740.89,0.00014879,2]
[355207382,1741009851223,-500.0,0.00014879,2]
[355207383,1741009851232,-500.0,0.00014879,2]
[355207384,1741009851241,-500.0,0.00014879,2]
[355207385,1741009851251,-500.0,0.00014879,2]
[355207386,1741009851260,-500.0,0.00014879,2]
[355207387,1741009851270,-500.0,0.00014879,2]
[355207388,1741009851279,-500.0,0.00014879,2]
[355207389,1741009851289,-313.56018759,0.00014879,2]
[355207390,1741009851298,-1421.66,0.00014879,2]
[355207391,1741009851308,-500.0,0.00014879,2]
[355207392,1741009851317,-1687.54,0.00014879,2]
[355207393,1741009851326,-29775.42,0.00014879,2]
[355207394,1741009851335,-500.0,0.00014879,2]
[355207395,1741009851344,-500.0,0.00014879,2]
[355207396,1741009851354,-514.26130969,0.00014879,2]
[355207397,1741009851364,-500.0,0.00014879,2]
[355207398,1741009851373,-500.0,0.00014879,2]
[355207399,1741009851382,-500.0,0.00014879,2]
[355207400,1741009851392,-500.0,0.00014879,2]
[355207401,1741009851401,-610.43,0.00014879,2]
[355207402,1741009851410,-500.0,0.00014879,2]
[355207403,1741009851419,-500.0,0.00014879,2]
[355207404,1741009851429,-527.07938813,0.00014879,2]
[355207405,1741009851439,-500.0,0.00014879,2]
[355207406,1741009851448,-500.0,0.00014879,2]
[355207407,1741009851457,-500.0,0.00014879,2]
[355207408,1741009851466,-500.0,0.00014879,2]
[355207409,1741009851475,-500.0,0.00014879,2]
[355207410,1741009851485,-1417.35,0.00014879,2]
[355207411,1741009851494,-500.0,0.00014879,2]
[355207412,1741009851503,-500.0,0.00014879,2]
[355207413,1741009851512,-500.0,0.00014879,2]
[355207414,1741009851522,-500.0,0.00014879,2]
[355207415,1741009851531,-500.0,0.00014879,2]
[355207416,1741009851541,-500.0,0.00014879,2]
[355207417,1741009851550,-508.97963779,0.00014879,2]
[355207418,1741009851561,-500.0,0.00014879,2]
[355207419,1741009851570,-500.0,0.00014879,2]
[355207420,1741009851582,-2498.29,0.00014879,2]
[355207421,1741009851591,-500.0,0.00014879,2]
[355207422,1741009851601,-500.0,0.00014879,2]
[355207423,1741009851611,-500.0,0.00014879,2]
[355207424,1741009851622,-27082.2,0.00014879,2]
[355207425,1741009851631,-601.01,0.00014879,2]
[355207426,1741009851641,-500.0,0.00014879,2]
[355207427,1741009851651,-500.0,0.00014879,2]
[355207428,1741009851661,-500.0,0.00014879,2]
[355207429,1741009851671,-500.0,0.00014879,2]
[355207430,1741009851680,-500.0,0.00014879,2]
[355207431,1741009851690,-500.0,0.00014879,2]
[355207432,1741009851699,-2249.37,0.00014879,2]
[355207433,1741009851711,-500.0,0.00014879,2]
[355207434,1741009851720,-500.0,0.00014879,2]
[355207435,1741009851730,-500.0,0.00014879,2]
[355207436,1741009851739,-500.0,0.00014879,2]
[355207437,1741009851749,-500.0,0.00014879,2]
[355207438,1741009851758,-500.0,0.00014879,2]
[355207439,1741009851767,-151.0,0.00014879,2]
[355207440,1741009851776,-151.0,0.00014879,2]
[355207441,1741009851786,-151.0,0.00014879,2]
[355207442,1741009851891,-151.0,0.00014879,2]
[355207443,1741009851912,-500.0,0.00014879,2]
[355207444,1741009851922,-151.0,0.00014879,2]
[355207445,1741009851931,-151.0,0.00014879,2]
[355207446,1741009851940,-151.0,0.00014879,2]
[355207447,1741009851950,-151.0,0.00014879,2]
[355207448,1741009851959,-151.0,0.00014879,2]
[355207449,1741009851968,-151.0,0.00014879,2]
[355207450,1741009851978,-151.0,0.00014879,2]
[355207451,1741009851987,-151.0,0.00014879,2]
[355207452,1741009851997,-151.0,0.00014879,2]
[355207453,1741009852006,-151.0,0.00014879,2]
[355207454,1741009852015,-3207.84,0.00014879,2]
[355207455,1741009852025,-151.0,0.00014879,2]
[355207456,1741009852034,-151.0,0.00014879,2]
[355207457,1741009852043,-500.0,0.00014879,2]
[355207458,1741009852053,-151.0,0.00014879,2]
[355207459,1741009852062,-151.0,0.00014879,2]
[355207460,1741009852071,-151.0,0.00014879,2]
[355207461,1741009852080,-500.0,0.00014879,2]
[355207462,1741009852089,-151.0,0.00014879,2]
[355207463,1741009852099,-151.0,0.00014879,2]
[355207464,1741009852108,-500.0,0.00014879,2]
[355207465,1741009852117,-500.0,0.00014879,2]
[355207466,1741009852126,-500.0,0.00014879,2]
[355207467,1741009852135,-500.0,0.00014879,2]
[355207468,1741009852144,-500.0,0.00014879,2]
[355207469,1741009852153,-1000.0,0.00014879,2]
[355207470,1741009852162,-527.73,0.00014879,2]
[355207471,1741009852171,-500.0,0.00014879,2]
[355207472,1741009852180,-8757.83,0.00014879,2]
[355207473,1741009852189,-500.0,0.00014879,2]
[355207474,1741009852199,-500.0,0.00014879,2]
[355207475,1741009852208,-500.0,0.00014879,2]
[355207476,1741009852217,-500.0,0.00014879,2]
[355207477,1741009852226,-500.0,0.00014879,2]
[355207478,1741009852235,-500.0,0.00014879,2]
[355207479,1741009852244,-500.0,0.00014879,2]
[355207480,1741009852253,-500.0,0.00014879,2]
[355207481,1741009852262,-860.73,0.00014879,2]
[355207482,1741009852271,-500.0,0.00014879,2]
[355207483,1741009852281,-500.0,0.00014879,2]
[355207484,1741009852290,-697.02,0.00014879,2]
[355207485,1741009852299,-500.0,0.00014879,2]
[355207486,1741009852309,-513.29908932,0.00014879,2]
[355207487,1741009852318,-500.0,0.00014879,2]
[355207488,1741009852327,-500.0,0.00014879,2]
[355207489,1741009852336,-507.02233599,0.00014879,2]
[355207490,1741009852346,-500.0,0.00014879,2]
[355207491,1741009852355,-500.0,0.00014879,2]
[355207492,1741009852364,-761.7,0.00014879,2]
[355207493,1741009852373,-500.0,0.00014879,2]
[355207494,1741009852382,-500.0,0.00014879,2]
[355207495,1741009852391,-500.0,0.00014879,2]
[355207496,1741009852400,-500.0,0.00014879,2]
[355207497,1741009852409,-500.0,0.00014879,2]
[355207498,1741009852419,-500.0,0.00014879,2]
[355207499,1741009852428,-1581.47,0.00014879,2]
[355207500,1741009852437,-410.68738294,0.0001488,2]
[355207501,1741009852446,-500.0,0.0001488,2]
[355207502,1741009852455,-210.49477676,0.0001488,2]
[355207503,1741009852464,-510.8847543,0.0001488,2]
[355207504,1741009852473,-504.47995964,0.0001488,2]
[355207505,1741009852483,-506.69538135,0.0001488,2]
[355207506,1741009852492,-629.71512869,0.0001488,2]
[355207507,1741009852501,-502.33656974,0.0001488,2]
[355207508,1741009852510,-316.88955215,0.0001488,2]
[355207509,1741009852519,-592.12,0.0001488,2]
[355207510,1741009852528,-500.0,0.0001488,2]
[355207511,1741009852538,-500.0,0.0001488,2]
[355207512,1741009852548,-500.0,0.0001488,2]
[355207513,1741009852557,-500.0,0.0001488,2]
[355207514,1741009852567,-500.0,0.0001488,2]
[355207515,1741009852578,-543.99,0.0001488,2]
[355207516,1741009852588,-947.53,0.0001488,2]
[355207517,1741009852598,-500.0,0.0001488,2]
[355207518,1741009852608,-522.79,0.0001488,2]
[355207519,1741009852618,-500.0,0.0001488,2]
[355207520,1741009852629,-500.0,0.0001488,2]
[355207521,1741009852639,-586.7,0.0001488,2]
[355207522,1741009852649,-500.0,0.0001488,2]
[355207523,1741009852659,-997.53,0.0001488,2]
[355207524,1741009852668,-500.0,0.0001488,2]
[355207525,1741009852677,-500.0,0.0001488,2]
[355207526,1741009852687,-1363.89,0.0001488,2]
[355207527,1741009852699,-722.87,0.0001488,2]
[355207528,1741009852708,-550.46,0.0001488,2]
[355207529,1741009852718,-500.0,0.0001488,2]
[355207530,1741009852727,-500.0,0.0001488,2]
[355207531,1741009852737,-647.52857242,0.0001488,2]
[355207532,1741009852746,-500.0,0.00014881,2]
[355207533,1741009852755,-500.0,0.00014881,2]
[355207534,1741009852765,-500.0,0.00014881,2]
[355207535,1741009852774,-500.0,0.00014881,2]
[355207536,1741009852783,-500.0,0.00014881,2]
[355207537,1741009852793,-500.0,0.00014881,2]
[355207538,1741009852802,-500.0,0.00014881,2]
[355207539,1741009852812,-500.0,0.00014881,2]
[355207540,1741009852822,-69673.03601473,0.00014884,2]
[355207541,1741009852832,-500.0,0.00014885,2]
[355207542,1741009852841,-1000.836,0.00014886,2]
[355207543,1741009852850,-8188.52245114,0.00014897,2]
[355207544,1741009852860,-503186.95790004,0.000149,2]
[355207545,1741009853337,-3268.2265522,0.000149,2]
[355207546,1741009853350,-571.76196946,0.000149,2]
[355207547,1741009853361,-833.513565,0.000149,2]
[355207548,1741009853373,-411152.64257685,0.000149,2]
[355207549,1741009853393,-380.349041,0.000149,2]
[355207550,1741009853405,-560.47152291,0.000149,2]
[355207551,1741009853416,-1062.55981972,0.000149,2]
[355207552,1741009853427,-270.82010219,0.000149,2]
[355207553,1741009853823,-720.72,0.00014798,2]
[355207554,1741009853833,-849.24,0.00014878,2]
[355207555,1741009853843,-3459.75461317,0.000149,2]
[355207556,1741009853868,-671.7783871,0.000149,2]
[355207557,1741009853879,-67023.15655529,0.000149,2]
[355207558,1741009853889,-628.0,0.000149,2]
[355207559,1741009853899,-151.0,0.000149,2]
[355207560,1741009853909,-151.0,0.000149,2]
[355207561,1741009853918,-151.0,0.000149,2]
[355207562,1741009853927,-152.983899,0.000149,2]
[355207563,1741009853937,-152.037911,0.000149,2]
[355207564,1741009853946,-151.0,0.000149,2]
[355207565,1741009853955,-151.0,0.000149,2]
[355207566,1741009853964,-151.0,0.000149,2]
[355207567,1741009853973,-151.0,0.000149,2]
[355207568,1741009853983,-166.003401,0.000149,2]
[355207569,1741009853992,-151.0,0.000149,2]
[355207570,1741009854002,-151.0,0.000149,2]
[355207571,1741009854012,-151.730556,0.000149,2]
[355207572,1741009854021,-214.480444,0.000149,2]
[355207573,1741009854031,-151.0,0.000149,2]
[355207574,1741009854039,-214.480444,0.000149,2]
[355207575,1741009854048,-151.0,0.000149,2]
[355207576,1741009854058,-381.275,0.000149,2]
[355207577,1741009854068,-239.4966,0.000149,2]
[355207578,1741009854078,-381.275,0.000149,2]
[355207579,1741009854087,-151.0,0.000149,2]
[355207580,1741009854096,-151.0,0.000149,2]
[355207581,1741009854105,-142.43493836,0.000149,2]
[355207582,1741009854117,-94.59144364,0.000149,2]
[355207583,1741009854126,-237.026382,0.000149,2]
[355207584,1741009854136,-226.786736,0.000149,2]
[355207585,1741009854145,-151.0,0.000149,2]
[355207586,1741009854155,-213.715066,0.000149,2]
[355207587,1741009854164,-151.0,0.000149,2]
[355207588,1741009854173,-151.0,0.000149,2]
[355207589,1741009854182,-151.0,0.000149,2]
[355207590,1741009854192,-151.0,0.000149,2]
[355207591,1741009854201,-151.0,0.000149,2]
[355207592,1741009854210,-151.0,0.000149,2]
[355207593,1741009854219,-151.0,0.000149,2]
[355207594,1741009854228,-151.0,0.000149,2]
[355207595,1741009854238,-151.0,0.000149,2]
[355207596,1741009854247,-151.0,0.000149,2]
[355207597,1741009854256,-151.0,0.000149,2]
[355207598,1741009854265,-151.0,0.000149,2]
[355207599,1741009854274,-151.0,0.000149,2]
[355207600,1741009854284,-151.0,0.000149,2]
[355207601,1741009854293,-151.377693,0.000149,2]
[355207602,1741009854302,-151.0,0.000149,2]
[355207603,1741009854312,-151.0,0.000149,2]
[355207604,1741009854321,-151.744704,0.000149,2]
[355207605,1741009854331,-151.0,0.000149,2]
[355207606,1741009854340,-151.0,0.000149,2]
[355207607,1741009854350,-400.0,0.000149,5]
[355207608,1741009854359,-190.9262066,0.000149,2]
[355207609,1741009854369,-1269.0,0.00014958,2]
[355207610,1741009854378,-3928.0,0.00014958,2]
[355207611,1741009854388,-150.0,0.00014958,2]
[355207612,1741009854397,-175.419,0.00014958,2]
[355207613,1741009854407,-896.533,0.00014958,2]
[355207614,1741009854416,-1112.0,0.00014958,2]
[355207615,1741009854426,-1028.20485807,0.0001496,10]
[355207616,1741009854435,-500.0,0.00014973,2]
[355207617,1741009854445,-505.38060988,0.00014973,2]
[355207618,1741009854454,-500.0,0.00014999,2]
[355207619,1741009854463,-500.0,0.00014999,2]
[355207620,1741009854472,-500.0,0.00014999,2]
[355207621,1741009854481,-500.0,0.00014999,2]
[355207622,1741009854491,-500.0,0.00014999,2]
[355207623,1741009854500,-500.0,0.00014999,2]
[355207624,1741009854509,-500.0,0.00014999,2]
[355207625,1741009854519,-500.0,0.00014999,2]
[355207626,1741009854528,-500.0,0.00014999,2]
[355207627,1741009854537,-500.0,0.00014999,2]
[355207628,1741009854546,-520.73091294,0.00014999,2]
[355207629,1741009854555,-790.81,0.00014999,2]
[355207630,1741009854566,-1067785.44269715,0.00015,2]
[355207631,1741009854581,-18217.24968448,0.00015,2]
[355207632,1741009854603,-500.0,0.00014879,2]
[355207633,1741009854613,-97.65837876,0.00015,2]
[355207634,1741009854626,-415.18932305,0.00015,2]
[355207635,1741009935076,174.58,0.00014121,2]
[355207636,1741009963628,1241.39,0.00012186,2]
[355207637,1741009963864,1241.39,0.0001445,2]
[355207638,1741010031526,175.4,0.00014088,2]
[355207641,1741010211324,200.0,0.00014058,2]
[355207642,1741010314294,250.0,0.00013,2]
[355207643,1741010356275,8531.69,0.00014096,2]
[355207644,1741010400473,10000.0,0.0001451,2]
[355207645,1741010422225,-10000030.0,0.00025516,45]
[355207646,1741010427256,-10000031.0,0.00025516,45]
[355207647,1741010432480,-10000032.0,0.00025516,45]
[355207648,1741010439350,-10000033.0,0.00025516,45]
[355207649,1741010449714,-10000034.0,0.00025516,45]
[355207650,1741010486411,30000.0,0.00014214,2]
[355207651,1741010515855,250.0,0.00013833,2]
[355207654,1741010557152,154.02,0.00013835,2]
[355207655,1741010572024,150.0,0.00013829,2]
[355207656,1741010606398,280.04,0.00013823,2]
[355207657,1741010606591,280.04,0.00013903,2]
[355207658,1741010606805,280.04,0.00013983,2]
[355207659,1741010607078,280.04,0.00014064,2]
[355207660,1741010607326,280.04,0.00014144,2]
[355207661,1741010607548,280.04,0.00014224,2]
[355207662,1741010607778,280.04,0.00014304,2]
[355207663,1741010608159,280.04,0.00014384,2]
[355207664,1741010608370,280.04,0.00014464,2]
[355207666,1741010709046,23900.0,0.00013819,2]
[355207667,1741010714320,309.41,0.00013819,2]
[355207668,1741010861871,167.38,0.00013807,2]
[355207670,1741010970292,2000.0,0.00013798,2]
[355207689,1741011032090,-154.02,0.00014527,2]
[355207690,1741011032101,-550.0,0.00014531,2]
[355207691,1741011032112,-150.0,0.00014535,2]
[355207692,1741011032122,-280.04,0.00014544,2]
[355207693,1741011032132,-183.23,0.00014594,2]
[355207694,1741011032142,-750.8414,0.00014598,2]
[355207695,1741011032152,-180.78644891,0.00014598,2]
[355207696,1741011032162,-448.24559949,0.00014598,2]
[355207697,1741011032174,-707.07731665,0.00014598,2]
[355207698,1741011032185,-629.99914214,0.00014598,2]
[355207699,1741011032198,-13.56858638,0.00014598,2]
[355207700,1741011032207,-280.04,0.00014624,2]
[355207701,1741011032217,-300.0,0.00014697,2]
[355207702,1741011032226,-170.79286561,0.00014698,2]
[355207703,1741011032237,-614.26907131,0.00014698,2]
[355207704,1741011032247,-216.96442697,0.00014698,2]
[355207705,1741011032256,-1432.8634,0.00014698,2]
[355207706,1741011032266,-275.8124,0.00014699,2]
[355207707,1741011032276,-500.0,0.00014699,2]
[355207708,1741011032286,-318.45310179,0.00014699,2]
[355207709,1741011032296,-280.04,0.00014704,2]
[355207710,1741011032312,-614.26907122,0.0001472,2]
[355207711,1741011032322,-216.96442693,0.0001472,2]